Cogmind - Beta 11 *** ADVENTURER MODE // 2022.04.07 @ 10:14:20 Player: Deep Beef Result: Destroyed by D-53 Grenadier with Mini Grenade Launcher Performance ------------- Evolutions (0) 0 Regions Visited (2) 400 Robots Destroyed (8) 40 Value Destroyed (173) 173 Prototype IDs (2) 40 Alien Tech Used (0) 0 Bonus (-18) -18 TOTAL SCORE: 635 Bonus ------- Follower Combat Kills 14 Friendly Fire -32 Cogmind --------- Core Integrity 0/250 Matter 280/300 Energy 70/100 System Corruption 0% Temperature Cool (0) Movement Walking (140) Location -10/Mines Parts ------- > --- POWER (1) -------- (None) > --- PROPULSION (2) --- Makeshift Leg Makeshift Leg > --- UTILITY (2) ------ Large Storage Unit > --- WEAPON (2) ------- Medium Laser > --- INVENTORY (15) --- Light Ion Engine Huge Storage Unit Huge Storage Unit Sensor Array Experimental Sensor Array Makeshift Salvage Targeting Computer Power Shielding Weapon Shielding Light Armor Plating Medium Laser Particle Gun Datajack Peak State ------------ > --- POWER ------------ Ion Engine > --- PROPULSION ------- Aluminum Leg Aluminum Leg > --- UTILITY ---------- Improved Heat Sink Large Storage Unit > --- WEAPON ----------- EM Pulse Gun Medium Laser > --- INVENTORY -------- Light Ion Engine Makeshift Leg Makeshift Leg Huge Storage Unit Huge Storage Unit Sensor Array Experimental Sensor Array Makeshift Salvage Targeting Computer Power Shielding Weapon Shielding Light Armor Plating Medium Laser Particle Gun Datajack [Rating: 12] Favorites ----------- Power Ion Engine Engine Ion Engine Propulsion Aluminum Leg Leg Aluminum Leg Utility Improved Heat Sink Device Improved Heat Sink Storage Small Storage Unit Weapon Medium Laser Energy Gun Medium Laser Build | -11 -10 -10 ------- Run | Scr Mat Min Slots Evolved . | . . . Power . | . . . Propulsion . | . . . Utility . | . . . Weapon . | . . . Parts Attached 11 | 6 3 2 Power 1 | 1 . . Engine 1 | 1 . . Core . | . . . Reactor . | . . . Propulsion 4 | 2 . 2 Treads . | . . . Leg 4 | 2 . 2 Wheel . | . . . Hover . | . . . Flight . | . . . Utility 3 | 1 2 . Device 1 | . 1 . Storage 2 | 1 1 . Processor . | . . . Hackware . | . . . Protection . | . . . Artifact . | . . . Weapon 3 | 2 1 . Energy Gun 3 | 2 1 . Energy Cannon . | . . . Ballistic Gun . | . . . Ballistic Cannon . | . . . Launcher . | . . . Special Weapon . | . . . Impact Weapon . | . . . Slashing Weapon . | . . . Piercing Weapon . | . . . Special Melee Weapon . | . . . Unidentified Prototypes . | . . . Parts Lost 5 | . . 5 Power 1 | . . 1 Propulsion 2 | . . 2 Utility 1 | . . 1 Weapon 1 | . . 1 Highest Loss Streak 5 | . . 5 To Critical Strikes . | . . . Average Slot Usage (%) 98 | . 98 98 Engine 13 | . 14 13 Leg 27 | . 28 27 Device 13 | . 12 14 Storage 14 | . 14 14 Energy Gun 27 | . 28 27 Naked Turns . | . . . Heaviest Build 30 | 13 30 30 Greatest Support 20 | 20 20 20 Greatest Overweight (x) 2 | 2 1 2 Average Overweight (x) . | . . 1 Largest Inventory Capacity 15 | 8 15 15 Average Capacity 11 | 6 9 15 Most Carried 14 | 2 10 14 Average Carried 7 | 1 5 12 Final Capacity 15 | 8 15 15 Final Carried 12 | 2 10 12 Class Distribution -------------------- 100% | Mutant Dominant Class ---------------- Mutant | -10/Materials Mutant | -10/Mines Resources | -11 -10 -10 ----------- Run | Scr Mat Min Matter Collected 290 | 186 94 10 Remotely . | . . . Salvage Created 232 | . 205 27 Parts 22 | . 18 4 Haulers Intercepted . | . . . Recyclers Shooed . | . . . Parts Field Recycled . | . . . Retrieved Matter . | . . . Parts Self-Destructed . | . . . Prevented . | . . . Kills | -11 -10 -10 ------- Run | Scr Mat Min Combat Hostiles Destroyed 4 | . 3 1 Guns 4 | . 3 1 Classes Destroyed 4 | . 2 2 Watcher 3 | . 3 . Swarmer 1 | . . 1 Grunt 3 | . 3 . Zionite 1 | . . 1 Best Kill Streak 3 | . 3 1 Combat Bots Only 2 | . 2 1 Max Kills in Single Turn 1 | . 1 1 Gunslinging . | . . . Exploded . | . . . Melee . | . . . Uniques/NPCs Destroyed . | . . . Combat | -11 -10 -10 -------- Run | Scr Mat Min Damage Taken 737 | . 156 581 Core 252 | . 24 228 Absorbed by Shields . | . . . Core Remaining (%) 100 | 100 . . Volleys Fired 18 | . 14 4 Largest 2 | . 2 2 Hottest 90 | . 90 90 Shots Fired 36 | . 28 8 Gun 36 | . 28 8 Cannon . | . . . Launcher . | . . . Special . | . . . Kinetic . | . . . Thermal 27 | . 23 4 Explosive . | . . . Electromagnetic 9 | . 5 4 Robot Hit Streak 10 | . 10 2 Robot Miss Streak 3 | . 1 3 Penetration Max . | . . . Secondary Targets 1 | . . 1 Max Gunslinging Chain 1 | . . 1 Shots Hit Robots 25 | . 22 3 Core Hits 11 | . 9 2 Critical Kills . | . . . Critical Parts Destroyed . | . . . Critical Strikes 1 | . 1 . Burn 1 | . 1 . Melee Attacks . | . . . Impact . | . . . Slashing . | . . . Piercing . | . . . Sneak Attacks . | . . . Combat Hostiles . | . . . Follow-up Attacks . | . . . Damage Inflicted 348 | . 301 47 Guns 348 | . 301 47 Cannons . | . . . Explosions . | . . . Melee . | . . . Ramming . | . . . Kinetic . | . . . Thermal 245 | . 220 25 Explosive . | . . . Electromagnetic 103 | . 81 22 Impact . | . . . Slashing . | . . . Piercing . | . . . Highest Corruption . | . . . Average Corruption . | . . . Corruption Purged . | . . . Corruption Blocked . | . . . Overload Shots . | . . . Overflow Damage . | . . . Projectiles . | . . . Explosions . | . . . Melee . | . . . Knockbacks . | . . . Impact . | . . . Kinetic . | . . . Secondary . | . . . Self-Inflicted Damage . | . . . Shots . | . . . Rammed . | . . . Targets Rammed . | . . . Kicked . | . . . Crushed . | . . . Highest Temperature 345 | . 345 . Average Temperature 169 | . 169 . Received Heat Transfer 132 | . 111 21 Siege Activations . | . . . Robots Corrupted . | . . . Combat Hostiles . | . . . Parts Fried 1 | . . 1 Impact Corruptions . | . . . Robots Melted . | . . . Combat Hostiles . | . . . Parts Melted 1 | . 1 . Heat Transferred 755 | . 681 74 Parts Sabotaged . | . . . Parts Stolen . | . . . Parts Stripped . | . . . Power Chain Reactions . | . . . Missiles Intercepted . | . . . Alert | -11 -10 -10 ------- Run | Scr Mat Min Peak Influence 141 | . 141 71 Initial . | . . . Average 49 | . 55 45 Maximum Alert Level . | . . . Low Security (%) 100 | 100 100 100 Level 1 . | . . . Level 2 . | . . . Level 3 . | . . . Level 4 . | . . . Level 5 . | . . . High Security . | . . . Max Security . | . . . Squads Dispatched . | . . . Investigation . | . . . Extermination . | . . . Reinforcement . | . . . Assault . | . . . Garrison . | . . . Intercept . | . . . Searches Triggered . | . . . Construction Impeded . | . . . Haulers Reinforced . | . . . Active Scanning Responses . | . . . Cargo Convoy Interrupts . | . . . Stealth | -11 -10 -10 --------- Run | Scr Mat Min Distress Signals . | . . . Communications Jammed . | . . . Distress Signals . | . . . Times Spotted 13 | . 6 7 Peak Tracking Total 3 | . 2 3 Tactical Retreats . | . . . Traps | -11 -10 -10 ------- Run | Scr Mat Min Traps Triggered . | . . . Indirectly . | . . . Trap Hack Attempts . | . . . Triggered . | . . . Disarmed . | . . . Reprogrammed . | . . . Reused . | . . . Traps Extracted . | . . . Installed . | . . . Triggered . | . . . Machines | -11 -10 -10 ---------- Run | Scr Mat Min Machines Disabled . | . . . Max in Single Turn . | . . . Machines Sabotaged . | . . . Garrisons Compromised . | . . . Overloaded Fab Kills . | . . . Hacking | -11 -10 -10 --------- Run | Scr Mat Min Machines Accessed 6 | . 6 . Terminals 6 | . 6 . Fabricators . | . . . Repair Stations . | . . . Recycling Units . | . . . Scanalyzers . | . . . Garrison Access . | . . . Total Hacks 14 | . 14 . Successful 9 | . 9 . Failed 5 | . 5 . Catastrophic 1 | . 1 . Database Lockouts . | . . . Manual 5 | . 5 . Terminals 14 | . 14 . Fabricators . | . . . Repair Stations . | . . . Recycling Units . | . . . Scanalyzers . | . . . Garrison Access . | . . . Terminal Hacks 5 | . 5 . Robot Analysis 2 | . 2 . Prototype ID Bank 1 | . 1 . Level Access Points 1 | . 1 . Terminal Index 1 | . 1 . Fabricator Hacks . | . . . Repair Station Hacks . | . . . Recycling Unit Hacks . | . . . Scanalyzer . | . . . Garrison Access Hacks . | . . . Unauthorized Hacks 4 | . 4 . Terminals 4 | . 4 . Botnet 4 | . 4 . Fabricators . | . . . Repair Stations . | . . . Recycling Units . | . . . Scanalyzers . | . . . Garrison Access . | . . . Data Cores Recovered . | . . . Used . | . . . Hacking Detections 6 | . 6 . Full Trace Events . | . . . Feedback Events . | . . . Feedback Blocked . | . . . Robot Schematics Acquired . | . . . Robots Built . | . . . Authchips . | . . . Time . | . . . Total Robot Build Rating . | . . . Part Schematics Acquired . | . . . Parts Built . | . . . Authchips . | . . . Time . | . . . Total Part Build Rating . | . . . Parts Repaired . | . . . Time . | . . . Parts Recycled . | . . . Recycled Matter . | . . . Retrieved Matter . | . . . Retrieved Components . | . . . Parts Scanalyzed . | . . . Part Schematics Acquired . | . . . Parts Damaged . | . . . Bothacking | -11 -10 -10 ------------ Run | Scr Mat Min Used RIF Installer . | . . . Robots Hacked . | . . . Non-combat . | . . . Combat . | . . . Robot Hacks Applied . | . . . Relay Couplers Released . | . . . Fabnet Peak Effective % . | . . . Robots Rewired . | . . . Allies Hacked . | . . . Hacks Repelled . | . . . Allies | -11 -10 -10 -------- Run | Scr Mat Min Total Allies 2 | . . 2 Largest Group 2 | . . 2 Highest-Rated Group 50 | . . 50 Highest-Rated Ally 31 | . . 31 Total Orders . | . . . Ally Attacks 10 | . . 10 Total Damage 82 | . . 82 Kills 2 | . . 2 Allies Corrupted . | . . . Allies Melted . | . . . Intel | -11 -10 -10 ------- Run | Scr Mat Min Robot Analysis Total 2 | . 2 . Derelict Logs Recovered . | . . . Drone Launches . | . . . Drone Recoveries . | . . . Exploration | -11 -10 -10 ------------- Run | Scr Mat Min Turns Passed 896 | 47 569 280 Spaces Moved 544 | 32 377 135 Core 8 | 8 . . Treads . | . . . Legs 536 | 24 377 135 Wheels . | . . . Hover . | . . . Flight . | . . . Fastest Speed 50 | 50 120 190 Average Speed 146 | 115 132 191 Slowest Speed 260 | 150 190 260 Overloaded Moves . | . . . Propulsion Burnouts . | . . . Robots Hopped . | . . . Cave-ins Triggered . | . . . Exploration Rate (%) 37 | 3 68 42 Regions Visited 2 Branch Regions 1 Pre-discovered Areas . | . . . Known Exits Taken . | . . . Unknown Exits Taken 2 | 1 1 . Scrap Searched 1 | . . 1 Spaces Dug . | . . . Terrain Destroyed . | . . . Melee . | . . . Projectile . | . . . AOE . | . . . Terrain Rammed . | . . . Walls Destroyed . | . . . Machines Disabled . | . . . Actions | -11 -10 -10 --------- Run | Scr Mat Min Total 606 | 39 418 149 Wait 16 | . 12 4 Move 542 | 31 376 135 Hop . | . . . Pick Up 17 | 2 11 4 Fast Attach 6 | 6 . . Attach 3 | . 1 2 Detach . | . . . Swap 2 | . 2 . Drop 2 | . 2 . Fire 18 | . 14 4 Melee . | . . . Ram . | . . . Kick . | . . . Crush . | . . . Escape Stasis . | . . . Rewire . | . . . Trap . | . . . Miscellaneous . | . . . Route ------- -11/Scrapyard -10/Materials (discovered 4 exits: *Mat x3 / [*Min]) -10/Mines (discovered 1 exit: *Mat) History --------- Turn | Location | Event 15 | -11/Scrapyard | Discovered new exit (range 15) 48 | -11/Scrapyard | Entered Materials 65 | -10/Materials | Identified exit to Materials 314 | -10/Materials | Build established: Mutant 487 | -10/Materials | Discovered new exit (range 15) 617 | -10/Materials | Entered Mines 618 | -10/Mines | Assembled infested the area 623 | -10/Mines | Assisted by a Guerilla fighting off Assembled 636 | -10/Mines | Met a Derelict bent on vengeance 690 | -10/Mines | Discovered exit to Materials (range 12) 792 | -10/Mines | Found a damaged Exp. Sensor Array with a note attached 817 | -10/Mines | Found Prototype Device 890 | -10/Mines | Core integrity fell below 50% 896 | -10/Mines | Core integrity fell below 20% 897 | -10/Mines | Destroyed by D-53 Grenadier with Mini Grenade Launcher Last Messages --------------- Deliver it to Megawrench for repairs then we'll never be afraid of an ambush while sneaking around Materials again, ha." Acquired Prototype Device. Searching scrap... Found Core Shielding. Found Signal Interpreter. Found 11 Matter. The unstable cave ceiling collapses. KR-X3M(g) destroyed. K-01 Serf destroyed. U-05 Engineer lays Concrete. U-05 Engineer destroyed. The unstable cave ceiling collapses. Aluminum Leg destroyed. Ion Engine destroyed. EM Pulse Gun destroyed. The unstable cave ceiling collapses. Imp. Heat Sink destroyed. The unstable cave ceiling collapses. Aluminum Leg destroyed. Map ----- +----------------------------------------------------+ | | | ?????????????????????????????????????????????? | | ?????????????????????????????????????????????? | | ?????????????????????????????????????????????? | | ?????????????????????????????????????????????? | | ?????????????????????????????????????????????? | | ?????????????????????????????????????????????? | | ?????????????????????????????????????????????? | | ?????????????????????????????????????????????? | | ?????????????????????????????????????????????? | | ??????????????????? ????????????????????? | | ????????????????? ???????????????????? | | ????????????????? ???????????????????? | | ????????????????? #???????????????????? | | ?????????????????? ##??????????????????? | | ?????????????????? ##?????????????????? | | ??????????????????# ##????????????????? | | ?????????????????## ##???????????????? | | ????????????????## #???????????????? | | ???????????????## #???????????????? | | ???????????????# #????????????????? | | ???????????????# #?????????????????? | | ???????????????# #??????###????????? | | ????????????????# ##?????# ##???????? | | ???????????? ??# ##???# ##??????? | | ?????????????# # @ # #### ?????? | | ?????????????# # ??????? | | ?????????????# # d d #???????????? | | ????????????????## ###???????????? | | ????????????????# # #????????????? | | ?????????????# ###????????????? | | ?????????? #?????????????? | | ?????????? ### #?????????????? | | ?????????? #??## ! #?????????????? | | ?????????? ????## # ##?????????????? | | ?????????? ?????### #??????????????? | | ?????????? """" ??????## #??????????????? | | ?????????????""" ??????## ##?????????????? | | ??????????????"" ??????# ##????????????? | | ??????????????? ? ??????# #????????????? | | ????????????????????????## #????????????? | | ?????????????????????????# ##???????????? | | ?????????????????????????# #???????????? | | ?????????????????????????# #???????????? | | ??????????????####???????## #???????????? | | ?????????????## ##???????# ##???????????? | | ???????????### ##??????# #????????????? | | ??????????## ######## #### ?????? | | ??????????# ???? | | ??????????# ??? | +----------------------------------------------------+ Best States ------------- Heat Dissipation 39 Energy Generation 10 Energy Capacity 250 Matter Stores 300 Matter Capacity 300 Sight Range 16 Terrain Scan Density 10 Resistance: KI 20 Resistance: TH 20 Resistance: EX 20 Resistance: EM 20 Resistance: I 20 Resistance: S 20 Resistance: P 20 Evasion (%) 55 Offensive Hacking 10 Item Schematics ----------------- None Robot Schematics ------------------ None Fabricated ------------ Nothing Alien Tech Used ----------------- None Achievements -------------- None Challenges ------------ None Game ------ Seed MobileFieldClaymores Manual? 0 Play Time 00:11:03 Cumulative 108.0 hours Start 2022.04.07 @ 10:01:56 End 2022.04.07 @ 10:14:20 Sessions 1 Manual Loads 0 Difficulty Adventurer Special Mode None Game No. 104 Rogue 72 Adventurer 32 Explorer 0 Win Type - Total 0 Types 0/0/0/0/0/0/0/0/0 Lore% 40 Gallery% 52 Achievement% 39 Wizard Run 0 Options --------- ASCII 0 Keyboard 0 Movement Mouse Keybinds 0 Fullscreen 1 Font 12/Smallcaps Map View 83x54 Tactical HUD 0 Map Filters NONE Filters NONE Steam 1 RUN: e492dde2-28e8-4e89-a76a-dbd16d9fc7c8